lending/lending_fUSD_20260306
["ID","MTS","AMOUNT","RATE_DAILY","PERIOD"]
[407766429,1772779838677,-864.0,0.00016649,2]
[407766431,1772779838687,-864.0,0.00016649,2]
[407766433,1772779838697,-864.0,0.00016649,2]
[407766435,1772779838707,-864.0,0.00016649,2]
[407766437,1772779838716,-864.0,0.00016649,2]
[407766439,1772779838726,-864.0,0.00016649,2]
[407766441,1772779838735,-864.0,0.00016649,2]
[407766443,1772779838744,-864.0,0.00016649,2]
[407766445,1772779838754,-864.0,0.00016649,2]
[407766447,1772779838763,-864.0,0.00016649,2]
[407766449,1772779838773,-864.0,0.00016649,2]
[407766451,1772779838782,-864.0,0.00016649,2]
[407766453,1772779838792,-864.0,0.00016649,2]
[407766455,1772779838802,-864.0,0.00016649,2]
[407766457,1772779838811,-864.0,0.00016649,2]
[407766459,1772779838820,-500.0,0.00016673,2]
[407766461,1772779838830,-500.0,0.00016673,2]
[407766463,1772779838839,-308.33409821,0.00016673,2]
[407766465,1772779838849,-500.0,0.00016773,2]
[407766466,1772779838858,-500.0,0.00016773,2]
[407766467,1772779838868,-301.78790722,0.00016773,2]
[407766468,1772779838877,-500.0,0.00016773,2]
[407766469,1772779838888,-500.0,0.00016773,2]
[407766470,1772779838898,-500.0,0.00016773,2]
[407766471,1772779838908,-500.0,0.00016773,2]
[407766472,1772779838919,-500.0,0.00016773,2]
[407766473,1772779838928,-500.0,0.00016773,2]
[407766474,1772779838938,-500.0,0.00016773,2]
[407766475,1772779838947,-152.00387375,0.00016773,2]
[407766476,1772779838957,-500.0,0.00016773,2]
[407766477,1772779838966,-500.0,0.00016773,2]
[407766478,1772779838976,-864.0,0.0001679,2]
[407766479,1772779838986,-864.0,0.0001679,2]
[407766480,1772779838995,-864.0,0.0001679,2]
[407766481,1772779839005,-864.0,0.0001679,2]
[407766482,1772779839014,-864.0,0.0001679,2]
[407766483,1772779839024,-864.0,0.0001679,2]
[407766484,1772779839033,-864.0,0.0001679,2]
[407766485,1772779839043,-864.0,0.0001679,2]
[407766486,1772779839052,-864.0,0.0001679,2]
[407766487,1772779839062,-864.0,0.0001679,2]
[407766488,1772779839073,-864.0,0.0001679,2]
[407766489,1772779839083,-864.0,0.0001679,2]
[407766490,1772779839094,-864.0,0.0001679,2]
[407766491,1772779839106,-864.0,0.0001679,2]
[407766492,1772779839116,-864.0,0.0001679,2]
[407766493,1772779839126,-864.0,0.0001679,2]
[407766494,1772779839139,-864.0,0.0001679,2]
[407766495,1772779839150,-864.0,0.0001679,2]
[407766496,1772779839160,-864.0,0.0001679,2]
[407766497,1772779839170,-864.0,0.0001679,2]
[407766498,1772779839181,-864.0,0.0001679,2]
[407766499,1772779839192,-864.0,0.0001679,2]
[407766500,1772779839203,-864.0,0.0001679,2]
[407766501,1772779839213,-864.0,0.0001679,2]
[407766502,1772779839223,-864.0,0.0001679,2]
[407766503,1772779839232,-864.0,0.0001679,2]
[407766504,1772779839242,-864.0,0.0001679,2]
[407766505,1772779839251,-864.0,0.0001679,2]
[407766506,1772779839261,-864.0,0.0001679,2]
[407766507,1772779839271,-864.0,0.0001679,2]
[407766508,1772779839282,-864.0,0.0001679,2]
[407766509,1772779839293,-864.0,0.0001679,2]
[407766510,1772779839303,-864.0,0.0001679,2]
[407766511,1772779839313,-864.0,0.0001679,2]
[407766512,1772779839323,-864.0,0.0001679,2]
[407766513,1772779839332,-864.0,0.0001679,2]
[407766514,1772779839343,-864.0,0.0001679,2]
[407766515,1772779839353,-864.0,0.0001679,2]
[407766516,1772779839364,-864.0,0.0001679,2]
[407766517,1772779839375,-864.0,0.0001679,2]
[407766518,1772779839385,-864.0,0.0001679,2]
[407766519,1772779839396,-864.0,0.0001679,2]
[407766520,1772779839407,-912.34094366,0.0001679,2]
[407766521,1772779839416,-864.0,0.0001679,2]
[407766522,1772779839427,-165.46,0.0001679,2]
[407766523,1772779839438,-586.44636194,0.000168,2]
[407766524,1772779839449,-760.175598,0.000168,2]
[407766525,1772779839460,-171.84,0.0001683,2]
[407766526,1772779839471,-761.09479598,0.0001691,2]
[407766527,1772779839480,-300.0,0.00017,2]
[407766528,1772779839490,-1000.0,0.00017048,2]
[407766529,1772779839500,-165.46,0.0001706,2]
[407766530,1772779839511,-1000.0,0.00017121,2]
[407766531,1772779839521,-166.66,0.00017143,2]
[407766532,1772779839531,-180.42,0.00017148,2]
[407766533,1772779839541,-586.44636194,0.00017187,2]
[407766534,1772779839551,-760.175598,0.00017187,2]
[407766535,1772779839560,-1852.42,0.00017217,2]
[407766536,1772779839570,-1000.0,0.00017221,2]
[407766537,1772779839579,-1000.0,0.00017221,2]
[407766538,1772779839588,-675.54,0.00017227,2]
[407766539,1772779839598,-265.639481,0.00017269,2]
[407766540,1772779839607,-1958.38,0.00017297,2]
[407766541,1772779839616,-816.44451037,0.00017321,2]
[407766542,1772779839626,-1000.0,0.00017321,2]
[407766543,1772779839635,-849.85488597,0.00017321,2]
[407766544,1772779839644,-1000.0,0.00017321,2]
[407766545,1772779839654,-949.5306254,0.00017321,2]
[407766546,1772779839663,-705.88057451,0.00017321,2]
[407766547,1772779839672,-1000.0,0.00017321,2]
[407766548,1772779839683,-1000.0,0.00017321,2]
[407766549,1772779839692,-1000.0,0.00017321,2]
[407766550,1772779839702,-427.60857695,0.00017321,2]
[407766551,1772779839711,-165.46,0.0001733,2]
[407766552,1772779839720,-500.0,0.00017479,2]
[407766553,1772779839730,-500.0,0.00017479,2]
[407766554,1772779839739,-861.61290015,0.00017479,2]
[407766555,1772779839748,-1206.85,0.0001751,7]
[407766556,1772779839758,-935.0,0.00017554,2]
[407766557,1772779839767,-586.44636194,0.00017575,2]
[407766558,1772779839776,-760.175598,0.00017575,2]
[407766559,1772779839785,-165.46,0.000176,2]
[407766560,1772779839795,-200.0,0.00017632,2]
[407766561,1772779839804,-1600.0,0.00017641,2]
[407766562,1772779839814,-500.0,0.0001765,2]
[407766563,1772779839823,-500.0,0.0001765,2]
[407766564,1772779839832,-1500.0,0.00017668,2]
[407766565,1772779839842,-166.66,0.00017691,2]
[407766566,1772779839852,-228.32,0.00017697,2]
[407766567,1772779839861,-171.84,0.00017715,2]
[407766568,1772779839870,-1500.0,0.00017768,2]
[407766569,1772779839879,-1500.0,0.00017768,2]
[407766570,1772779839888,-9051.42,0.00017808,7]
[407766571,1772779839897,-1500.0,0.00017868,2]
[407766572,1772779839906,-1500.0,0.00017868,2]
[407766573,1772779839915,-1500.0,0.00017868,2]
[407766574,1772779839924,-1500.0,0.00017868,2]
[407766575,1772779839933,-1500.0,0.00017868,2]
[407766576,1772779839943,-165.46,0.0001787,2]
[407766577,1772779839953,-420.0,0.00017936,2]
[407766578,1772779839963,-586.44636194,0.00017962,2]
[407766579,1772779839972,-760.175598,0.00017962,2]
[407766580,1772779839982,-3388.83143379,0.00017966,2]
[407766581,1772779839991,-1000.0,0.00017966,2]
[407766582,1772779840001,-219.73015263,0.00017966,2]
[407766583,1772779840010,-721.12765535,0.00017966,2]
[407766584,1772779840019,-500.0,0.00017966,2]
[407766585,1772779840028,-250.0,0.00017966,2]
[407766586,1772779840038,-500.0,0.00017966,2]
[407766587,1772779840047,-250.0,0.00017966,2]
[407766588,1772779840057,-500.0,0.00017966,2]
[407766589,1772779840066,-250.0,0.00017966,2]
[407766590,1772779840075,-250.0,0.00017966,2]
[407766591,1772779840084,-500.0,0.00017966,2]
[407766592,1772779840093,-693.3919763,0.00017966,2]
[407766593,1772779840102,-250.0,0.00017966,2]
[407766594,1772779840112,-250.0,0.00017966,2]
[407766595,1772779840121,-500.0,0.00017966,2]
[407766596,1772779840130,-250.0,0.00017966,2]
[407766597,1772779840141,-500.0,0.00017966,2]
[407766598,1772779840150,-250.0,0.00017966,2]
[407766599,1772779840159,-500.0,0.00017966,2]
[407766600,1772779840168,-250.0,0.00017966,2]
[407766601,1772779840178,-500.0,0.00017966,2]
[407766602,1772779840188,-250.0,0.00017966,2]
[407766603,1772779840197,-500.0,0.00017966,2]
[407766604,1772779840207,-250.0,0.00017966,2]
[407766605,1772779840217,-500.0,0.00017966,2]
[407766606,1772779840226,-250.0,0.00017966,2]
[407766607,1772779840236,-500.0,0.00017966,2]
[407766608,1772779840245,-1000.0,0.00017966,2]
[407766609,1772779840254,-1000.0,0.00017966,2]
[407766610,1772779840263,-271.67882507,0.00017966,2]
[407766611,1772779840273,-1000.0,0.00017966,2]
[407766612,1772779840282,-151.0,0.00017966,2]
[407766613,1772779840291,-1000.0,0.00017966,2]
[407766614,1772779840301,-578.20924308,0.00017966,2]
[407766615,1772779840310,-300.0,0.00017966,2]
[407766616,1772779840319,-1000.0,0.00017966,2]
[407766617,1772779840328,-300.0,0.00017966,2]
[407766619,1772779840337,-1000.0,0.00017966,2]
[407766621,1772779840346,-305.95163096,0.00017966,2]
[407766622,1772779840356,-262.90206542,0.00017966,2]
[407766623,1772779840365,-174.61919141,0.00017966,2]
[407766624,1772779840374,-151.0,0.00017966,2]
[407766625,1772779840384,-151.0,0.00017966,2]
[407766626,1772779840393,-151.0,0.00017966,2]
[407766627,1772779840402,-151.0,0.00017966,2]
[407766628,1772779840411,-151.0,0.00017966,2]
[407766629,1772779840421,-250.0,0.00017966,2]
[407766630,1772779840430,-250.0,0.00017966,2]
[407766631,1772779840439,-151.0,0.00017966,2]
[407766632,1772779840448,-500.0,0.00017966,2]
[407766633,1772779840457,-250.0,0.00017966,2]
[407766634,1772779840466,-500.0,0.00017966,2]
[407766635,1772779840475,-151.0,0.00017966,2]
[407766636,1772779840484,-250.0,0.00017966,2]
[407766637,1772779840493,-500.0,0.00017966,2]
[407766638,1772779840808,-151.0,0.00017966,2]
[407766639,1772779840818,-250.0,0.00017966,2]
[407766640,1772779840828,-503.01170887,0.00017966,2]
[407766641,1772779840838,-250.0,0.00017966,2]
[407766642,1772779840847,-500.0,0.00017966,2]
[407766643,1772779840856,-250.0,0.00017966,2]
[407766644,1772779840865,-500.0,0.00017966,2]
[407766645,1772779840874,-508.72212285,0.00017966,2]
[407766646,1772779840884,-743.50770149,0.00017966,2]
[407766647,1772779840893,-209.40437685,0.00017966,2]
[407766648,1772779840903,-500.0,0.00017966,2]
[407766649,1772779840912,-500.0,0.00017966,2]
[407766650,1772779840922,-500.0,0.00017966,2]
[407766651,1772779840931,-500.0,0.00017966,2]
[407766652,1772779840939,-500.0,0.00017966,2]
[407766653,1772779840948,-500.0,0.00017966,2]
[407766654,1772779840957,-500.0,0.00017966,2]
[407766655,1772779840968,-500.0,0.00017966,2]
[407766656,1772779840980,-698.27174692,0.00017966,2]
[407766657,1772779840990,-500.0,0.00017966,2]
[407766658,1772779841000,-500.0,0.00017966,2]
[407766659,1772779841010,-500.0,0.00017966,2]
[407766660,1772779841020,-269.917619,0.00017966,2]
[407766661,1772779841030,-500.0,0.00017973,2]
[407766662,1772779841039,-500.0,0.00017973,2]
[407766663,1772779841052,-500.0,0.00017973,2]
[407766664,1772779841061,-500.0,0.00017973,2]
[407766665,1772779841070,-719.04747942,0.00018021,2]
[407766666,1772779841080,-1680.0,0.00018025,2]
[407766667,1772779841089,-250.0,0.0001804,2]
[407766668,1772779841098,-2500.0,0.0001804,2]
[407766670,1772779841108,-1714.34561729,0.0001804,2]
[407766671,1772779841117,-745.65223616,0.00018076,2]
[407766672,1772779841126,-2700.0,0.00018082,7]
[407766673,1772779841139,-1958.38,0.00018083,2]
[407766674,1772779841148,-773.2413689,0.00018131,2]
[407766675,1772779841157,-165.46,0.0001814,2]
[407766676,1772779841166,-248.4,0.00018175,2]
[407766677,1772779841177,-163.67,0.00018184,2]
[407766678,1772779841186,-801.85129955,0.00018186,2]
[407766679,1772779841195,-1000.0,0.00018198,2]
[407766680,1772779841205,-1000.0,0.00018198,2]
[407766681,1772779841215,-455.32379031,0.00018216,2]
[407766682,1772779841224,-2000.0,0.00018216,2]
[407766683,1772779841235,-166.66,0.00018239,2]
[407766684,1772779841245,-831.51979763,0.00018241,2]
[407766685,1772779841255,-500.0,0.00018284,2]
[407766686,1772779841264,-500.0,0.00018284,2]
[407766687,1772779841273,-500.0,0.00018284,2]
[407766688,1772779841283,-862.28603014,0.00018296,2]
[407766689,1772779841292,-2000.0,0.00018316,2]
[407766690,1772779841302,-942.99956491,0.00018316,2]
[407766691,1772779841312,-586.44636194,0.0001835,2]
[407766692,1772779841322,-760.175598,0.0001835,2]
[407766693,1772779841331,-894.19061326,0.00018351,2]
[407766694,1772779841340,-600.0,0.00018356,7]
[407766695,1772779841349,-500.0,0.00018356,7]
[407766696,1772779841359,-847.0,0.000184,2]
[407766697,1772779841368,-927.27566595,0.00018406,2]
[407766698,1772779841377,-165.46,0.0001841,2]
[407766699,1772779841386,-2000.0,0.00018416,2]
[407766700,1772779841396,-2000.0,0.00018416,2]
[407766701,1772779841405,-2000.0,0.00018416,2]
[407766702,1772779841415,-1489.71509886,0.00018416,2]
[407766703,1772779841426,-1902.19853182,0.00018416,2]
[407766704,1772779841437,-500.0,0.00018438,2]
[407766705,1772779841447,-961.58486559,0.00018461,2]
[407766706,1772779841458,-1000.0,0.00018514,2]
[407766707,1772779841468,-272.62944185,0.00018514,2]
[407766708,1772779841477,-181.08010149,0.00018514,2]
[407766709,1772779841487,-997.16350561,0.00018516,2]
[407766710,1772779841496,-1000.0,0.00018521,2]
[407766711,1772779841505,-1030.88059829,0.00018521,2]
[407766712,1772779841514,-1000.0,0.00018521,2]
[407766713,1772779841523,-1000.0,0.00018521,2]
[407766714,1772779841534,-500.0,0.00018543,2]
[407766715,1772779841543,-500.0,0.00018543,2]
[407766716,1772779841552,-675.54,0.00018597,2]
[407766717,1772779841563,-171.84,0.00018601,2]
[407766718,1772779841572,-165.46,0.0001868,2]
[407766719,1772779841581,-847.0,0.0001872,2]
[407766720,1772779841591,-847.0,0.0001872,2]
[407766721,1772779841602,-160.0,0.0001872,2]
[407766722,1772779841612,-586.44636194,0.00018737,2]
[407766723,1772779841622,-760.175598,0.00018737,2]
[407766724,1772779841632,-1500.0,0.00018746,2]
[407766725,1772779841643,-293.77158202,0.00018746,2]
[407766726,1772779841654,-1145.0,0.00018753,2]
[407766727,1772779841664,-2500.0,0.00018764,2]
[407766728,1772779841675,-166.66,0.00018786,2]
[407766729,1772779841684,-1105.14676793,0.0001881,2]
[407766730,1772779841694,-1136.99759496,0.0001881,2]
[407766731,1772779841704,-1026.5155864,0.0001881,2]
[407766732,1772779841713,-1069.28549679,0.0001881,2]
[407766733,1772779841722,-1091.64386985,0.0001881,2]
[407766734,1772779841731,-1143.42331566,0.0001881,2]
[407766735,1772779841740,-494.64624274,0.00018832,2]
[407766736,1772779841749,-1000.0,0.00018832,2]
[407766737,1772779841758,-1000.0,0.00018832,2]
[407766738,1772779841767,-446.12402339,0.00018864,2]
[407766739,1772779841776,-1958.38,0.0001887,2]
[407766740,1772779841785,-905.14,0.0001888,7]
[407766741,1772779841794,-153.26719895,0.000189,2]
[407766742,1772779841803,-299.95430794,0.00018915,2]
[407766743,1772779841812,-1000.0,0.00018942,2]
[407766744,1772779841822,-165.46,0.0001895,2]
[407766745,1772779841832,-172.74325605,0.0001896,2]
[407766746,1772779841841,-160.0,0.0001896,2]
[407766747,1772779841851,-1546.47179689,0.00018964,2]
[407766748,1772779841860,-1649.86978781,0.00018964,2]
[407766749,1772779841870,-2500.0,0.00018964,2]
[407766750,1772779841879,-350.0,0.00019,2]
[407766751,1772779841888,-168.23728436,0.00019,2]
[407766752,1772779841898,-192.108435,0.00019008,2]
[407766753,1772779841907,-160.0,0.0001904,2]
[407766754,1772779841917,-455.32379031,0.00019058,2]
[407766755,1772779841926,-1000.0,0.00019062,2]
[407766756,1772779841935,-282.71673119,0.00019062,2]
[407766757,1772779841945,-187.78006525,0.00019062,2]
[407766758,1772779841954,-1500.0,0.00019068,2]
[407766759,1772779841964,-1500.0,0.00019068,2]
[407766760,1772779841974,-1500.0,0.00019068,2]
[407766761,1772779841984,-1000.0,0.00019091,2]
[407766762,1772779841993,-1000.0,0.00019091,2]
[407766763,1772779842002,-586.44636194,0.00019125,2]
[407766764,1772779842012,-760.175598,0.00019125,2]
[407766765,1772779842022,-6034.28,0.00019178,7]
[407766766,1772779842031,-2700.0,0.00019178,7]
[407766767,1772779842041,-150.0,0.00019178,2]
[407766768,1772779842051,-180.42,0.00019183,2]
[407766769,1772779842060,-2000.0,0.000192,2]
[407766770,1772779842070,-165.46,0.0001922,2]
[407766771,1772779842080,-1144.93928584,0.00019234,2]
[407766772,1772779842090,-151.0,0.00019249,2]
[407766773,1772779842099,-200.0,0.00019265,2]
[407766774,1772779842108,-12256.42,0.0001927,2]
[407766775,1772779842122,-2000.0,0.00019294,2]
[407766776,1772779842134,-3000.0,0.00019312,2]
[407766777,1772779842143,-166.66,0.00019334,2]
[407766778,1772779842153,-151.0,0.00019356,2]
[407766779,1772779842162,-847.0,0.0001936,2]
[407766780,1772779842172,-1134.58548457,0.0001938,2]
[407766781,1772779842181,-1500.0,0.0001938,2]
[407766782,1772779842190,-600.0,0.00019452,7]
[407766783,1772779842199,-151.0,0.00019464,2]
[407766784,1772779842212,-171.84,0.00019487,2]
[407766785,1772779842221,-165.46,0.0001949,2]
[407766786,1772779842230,-683.11883857,0.00019512,2]
[407766787,1772779842239,-586.44636194,0.00019512,2]
[407766788,1772779842248,-760.175598,0.00019512,2]
[407766789,1772779842257,-168.0,0.00019549,2]
[407766790,1772779842267,-1144.93928582,0.00019567,2]
[407766791,1772779842276,-151.0,0.00019571,2]
[407766792,1772779842285,-225.99,0.00019578,2]
[407766793,1772779842294,-751.96799956,0.000196,2]
[407766794,1772779842304,-587.0,0.00019601,2]
[407766795,1772779842313,-1600.0,0.00019601,2]
[407766796,1772779842323,-1000.0,0.0001961,2]
[407766797,1772779842332,-293.17725025,0.0001961,2]
[407766798,1772779842341,-194.72792766,0.0001961,2]
[407766799,1772779842351,-785.42431869,0.00019616,2]
[407766800,1772779842360,-557.2086331,0.00019616,2]
[407766801,1772779842370,-2000.0,0.00019616,2]
[407766802,1772779842380,-1500.0,0.00019639,2]
[407766803,1772779842389,-1500.0,0.00019639,2]
[407766804,1772779842399,-151.0,0.00019678,2]
[407766805,1772779842408,-250.0,0.00019726,2]
[407766806,1772779842417,-165.46,0.0001976,2]
[407766807,1772779842426,-151.0,0.00019785,2]
[407766808,1772779842435,-2351.0,0.00019798,2]
[407766809,1772779842444,-500.0,0.00019808,2]
[407766810,1772779842453,-500.0,0.0001984,2]
[407766811,1772779842462,-2500.0,0.00019842,2]
[407766812,1772779842471,-153.26719895,0.00019845,2]
[407766813,1772779842480,-3500.0,0.0001986,2]
[407766814,1772779842489,-168.0,0.00019881,2]
[407766815,1772779842498,-168.0,0.00019882,2]
[407766816,1772779842507,-151.0,0.00019893,2]
[407766817,1772779842516,-586.44636194,0.000199,2]
[407766818,1772779842525,-455.32379031,0.000199,2]
[407766819,1772779842534,-1144.93928582,0.000199,2]
[407766820,1772779842543,-760.175598,0.000199,2]
[407766821,1772779842552,-4442.0,0.000199,2]
[407766822,1772779842561,-3544.0,0.000199,2]
[407766823,1772779842571,-168.0,0.00019901,2]
[407766824,1772779842580,-2000.0,0.00019928,2]
[407766825,1772779842590,-180.42,0.00019961,2]
[407766826,1772779842600,-150.0,0.00019973,2]
[407766827,1772779842609,-151.0,0.00019995,2]
[407766828,1772779842619,-151.0,0.00019997,2]
[407766829,1772779842629,-528319.1203695,0.00019998,2]
[407766830,1772779842638,-300.0,0.00019999,2]
[407766831,1772779842648,-300.0,0.00019999,2]
[407766832,1772779842657,-163.38959689,0.00019999,2]
[407766833,1772779842666,-1897544.22339368,0.0002,2]
[407766834,1772779843502,-2299.1,0.0002,2]
[407766837,1772779845677,-239.03151908,0.00018073,2]
[407766838,1772779845691,-86.54863523,0.00019294,2]
[407766839,1772779845703,-913.45136477,0.00019294,2]
[407766840,1772779845712,-157.73031605,0.00019568,2]
[407766841,1772779845798,-636.67429779,0.00019568,2]
[407766844,1772779846217,-205.59538616,0.00019568,2]
[407766846,1772779846227,-1000.0,0.00019842,2]
[407766848,1772779846236,-13165.82542354,0.0002,2]
[407766855,1772779853064,506.0,0.00014,2]
[407766856,1772779871344,2272.0,0.000152,5]
[407766857,1772780003865,1009.81,0.00016,2]
[407766858,1772780017972,6212.2,0.00016033,2]
[407766859,1772780017995,3787.8,0.00016033,2]
[407766860,1772780029158,6212.21,0.00016033,2]
[407766861,1772780029183,3787.79,0.00016033,2]
[407766862,1772780045725,5833.3,0.00016033,2]
[407766863,1772780069954,378.92,0.00016,2]
[407766864,1772780069979,630.89,0.00016,2]
[407766865,1772780076137,150.0,0.00015886,2]
[407766866,1772780099548,1000.0,0.00016,3]
[407766867,1772780123749,1990.19,0.00016,4]
[407766868,1772780139074,168.46,0.00016,2]
[407766873,1772780394034,6060.47,9.95e-05,2]
[407766874,1772780394064,10000.01,9.95e-05,2]
[407766875,1772780394099,4824.02488596,9.95e-05,2]
[407766876,1772780401237,4971.87037088,8e-05,2]
[407766880,1772780451760,204.11474316,0.00015,14]
[407766881,1772780451784,1945.15410101,0.00015,14]
[407766883,1772780495594,1230.55,0.00015886,2]
[407766884,1772780533091,530.94605095,0.0001,2]
[407766885,1772780534949,250.0,0.00015,2]
[407766888,1772780552537,200.72181509,0.00015933,2]
[407766889,1772780553036,1001.54063162,0.0001,2]
[407766890,1772780555200,347.67123154,0.0001,2]
[407766891,1772780651510,172.0,0.00016033,2]
[407766892,1772780675545,150.0,0.00015933,2]
[407766893,1772780742201,-334.13735202,0.000162,5]
[407766894,1772780790100,-957.00728108,0.00016137,2]
[407766896,1772780872863,1908.75,0.00015308,2]
[407766897,1772780950079,2262.67616979,0.00015886,2]
[407766898,1772780950106,977.32383021,0.00015886,2]
[407766899,1772781011317,164.0,0.00016033,2]
[407766905,1772781031477,-499.50294632,0.00016037,2]
[407766906,1772781031557,-1276.70683061,0.00016037,2]
[407766907,1772781031567,-150.0,0.000161,2]
[407766908,1772781031577,-150.0,0.000161,2]
[407766909,1772781031587,-285.0,0.000161,2]
[407766910,1772781031596,-410.29316939,0.00016105,2]
[407766925,1772781032033,-85.06053811,0.00016105,2]
[407766926,1772781032043,-300.0,0.00016109,2]
[407766927,1772781032053,-600.0,0.00016118,2]
[407766928,1772781032062,-151.0,0.00016124,2]
[407766929,1772781032071,-151.0,0.00016124,2]
[407766930,1772781032081,-300.0,0.00016126,2]
[407766931,1772781032090,-1200.0,0.00016126,2]
[407766932,1772781032099,-300.0,0.00016126,2]
[407766933,1772781032108,-282192.35954862,0.00016127,2]
[407766934,1772781032119,-3284.79972123,0.00016127,2]
[407766935,1772781032131,-469.90281369,0.00016127,2]
[407766936,1772781032142,-1525.88974738,0.00016127,2]
[407766937,1772781037504,-750.97674804,0.00016127,2]
[407766938,1772781037515,-1086.4395005,0.00016127,2]
[407766939,1772781037527,-10039.4030832,0.00016127,2]
[407766940,1772781037683,-718.06097248,0.00016127,2]
[407766941,1772781037695,-1889.39566806,0.00016127,2]
[407766942,1772781037705,-1181.49296096,0.00016127,2]
[407766943,1772781037743,-2196861.27923584,0.00016127,2]
[407766945,1772781037752,-300.0,0.0001613,2]
[407766947,1772781037762,-300.0,0.0001613,2]
[407766949,1772781037771,-5791.22651892,0.00016137,2]
[407766952,1772781037780,-1232.9975,0.00016137,2]
[407766954,1772781037790,-600.0,0.00016168,2]
[407766955,1772781037799,-610.24845521,0.00016168,2]
[407766956,1772781037808,-500.30907238,0.00016173,2]
[407766957,1772781037817,-500.0,0.00016173,2]
[407766958,1772781037826,-500.0,0.00016173,2]
[407766959,1772781037836,-500.0,0.00016173,2]
[407766960,1772781037845,-500.0,0.00016173,2]
[407766961,1772781037855,-300.0,0.00016198,2]
[407766963,1772781037874,-1200.0,0.00016199,2]
[407766964,1772781037885,-1131.58264798,0.000162,5]
[407766965,1772781037895,-550.0,0.00016226,2]
[407766966,1772781037906,-37956.96110673,0.00016227,2]
[407766967,1772781037917,-972.80598158,0.00016236,2]
[407766968,1772781037928,-500.0,0.00016237,2]
[407766969,1772781037937,-298.41055689,0.00016237,2]
[407766970,1772781037947,-600.0,0.00016237,2]
[407766971,1772781037957,-763.99266429,0.0001624,2]
[407766972,1772781037967,-1086.65669075,0.0001624,2]
[407766973,1772781037977,-500.0,0.00016273,2]
[407766974,1772781037987,-455.32379031,0.00016273,2]
[407766975,1772781037996,-500.0,0.00016283,2]
[407766976,1772781038006,-1230.55,0.00016283,2]
[407766977,1772781038016,-7979.49,0.00016283,2]
[407766978,1772781038026,-9999.99,0.00016283,2]
[407766979,1772781038035,-150.99,0.00016283,2]
[407766980,1772781038045,-415.66,0.00016283,2]
[407766981,1772781038054,-14676.68,0.00016283,2]
[407766982,1772781038063,-7320.46,0.00016283,2]
[407766983,1772781038073,-9999.99,0.00016283,2]
[407766984,1772781038083,-299.99,0.00016283,4]
[407766985,1772781038094,-9999.99,0.00016283,2]
[407766986,1772781038103,-9999.99,0.00016283,2]
[407766987,1772781038112,-312.02,0.00016283,2]
[407766988,1772781038126,-999.99,0.00016283,2]
[407766989,1772781038136,-499.99,0.00016283,2]
[407766990,1772781038145,-1565.73,0.00016283,2]
[407766991,1772781038155,-350.24,0.00016283,2]
[407766992,1772781038165,-150.99,0.00016283,2]
[407766993,1772781038175,-4999.99,0.00016283,2]
[407766994,1772781038184,-462.0,0.00016325,2]
[407766995,1772781038194,-502.28943527,0.00016327,2]
[407766996,1772781038204,-200.0,0.00016327,2]
[407766997,1772781038214,-500.0,0.00016327,2]
[407766998,1772781038224,-500.0,0.00016327,2]